bitfinex-derivatives/quotes_SOLF0:USTF0_20250609
["timestamp","ask_amount","ask_price","bid_price","bid_amount"]
[1749440546327,0.04661084,150.97,150.96,9.36943648]
[1749440546528,0.04661084,150.97,150.96,45.18984334]
[1749440546733,2.74843648,151.02,151.01,6.6188]
[1749440547031,8.34089311,151.02,151.01,6.6188]
[1749440547224,5.59245663,151.02,151.01,6.6188]
[1749440547421,5.59245663,151.02,151.0,6.6191]
[1749440547626,5.59245663,151.01,151.0,6.6191]
[1749440551234,5.59245663,151.01,150.99,6.67016934]
[1749440551437,5.59245663,151.0,150.99,6.67016934]
[1749440555134,0.04339638,151.02,151.0,6.6192]
[1749440555433,5.60859517,151.01,151.0,6.6192]
[1749440557840,5.60859517,151.01,150.99,6.67006934]
[1749440558036,0.04339638,151.02,150.99,0.05056934]
[1749440558242,0.04339638,151.02,151.01,6.6188]
[1749440558440,5.65463252,151.02,151.01,6.6188]
[1749440559937,5.65463252,151.02,151.0,6.6191]
[1749440560139,0.04339638,151.02,150.99,4.35471519]
[1749440560340,6.6189,151.01,150.99,0.05056934]
[1749440561740,0.04339638,151.02,150.99,0.05056934]
[1749440561942,5.61620257,151.01,150.99,0.05056934]
[1749440562241,5.61620257,151.0,150.99,0.05056934]
[1749440562637,12.23550257,151.0,150.99,0.05056934]
[1749440563545,5.61620257,151.0,150.99,0.05056934]
[1749440572449,5.61620257,151.0,150.99,6.67026934]
[1749440572948,0.04339638,151.02,151.01,6.6188]
[1749440573251,5.66884594,151.02,151.01,6.6188]
[1749440579159,5.66884594,151.02,150.99,32.87056934]
[1749440579359,0.04339638,151.02,150.99,32.87056934]
[1749440580455,0.04339638,151.02,151.01,6.6188]
[1749440580657,5.66902588,151.02,151.01,6.6188]
[1749440582061,5.66902588,151.02,151.0,6.6191]
[1749440582265,0.04339638,151.02,150.99,32.87056934]
[1749440583262,0.04339638,151.02,151.01,6.6188]
[1749440583561,5.6681924,151.02,151.01,6.6188]
[1749440585059,0.04339638,151.02,151.01,6.6188]
[1749440596964,5.67576951,151.02,151.01,32.78]
[1749440601475,12.29416951,151.02,151.01,32.78]
[1749440603675,5.67576951,151.02,151.01,32.78]
[1749440604276,5.67576951,151.02,151.01,39.3988]
[1749440606874,0.04339638,151.02,151.01,39.3988]
[1749440609679,5.67385553,151.02,151.01,39.3988]
[1749440612482,0.04339638,151.02,151.01,39.3988]
[1749440613080,9.638e-05,151.02,151.01,39.3988]
[1749440613683,9.638e-05,151.02,151.01,46.0188]
[1749440616587,9.638e-05,151.02,151.01,39.3988]
[1749440650806,9.638e-05,151.02,151.01,6.6188]
[1749440650998,9.638e-05,151.02,151.01,39.3388]
[1749440686843,5.63685725,151.02,151.01,39.3388]
[1749440690447,9.638e-05,151.02,151.01,39.3388]
[1749440690745,5.62800116,151.02,151.01,39.3388]
[1749440691247,9.638e-05,151.02,151.01,39.3388]
[1749440696152,5.64148423,151.02,151.01,39.3388]
[1749440696352,9.638e-05,151.02,151.01,39.3388]
[1749440702355,5.6414241,151.02,151.01,39.3388]
[1749440705153,9.638e-05,151.02,151.01,39.3388]
[1749440706154,5.64242421,151.02,151.01,39.3388]
[1749440707260,5.64242421,151.02,151.01,32.72]
[1749440708058,5.64242421,151.02,151.01,39.3388]
[1749440711558,5.64242421,151.02,151.01,32.72]
[1749440712467,5.64242421,151.02,151.01,39.3388]
[1749440723866,5.64242421,151.02,150.99,0.05056934]
[1749440724067,15.99924278,151.01,150.99,0.05056934]
[1749440724368,16.52000861,151.0,150.99,0.05056934]
[1749440724669,16.52000583,151.0,150.99,0.05056934]
[1749440724871,12.26152783,151.0,150.99,0.05056934]
[1749440726669,5.64232783,151.0,150.99,0.05056934]
[1749440727570,5.64232783,151.0,150.99,6.67026934]
[1749440730773,5.64232783,151.0,150.99,0.05056934]
[1749440734678,5.64232783,151.0,150.99,6.67026934]
[1749440745090,5.64232783,151.0,150.99,0.05056934]
[1749440745691,9.99445496,151.0,150.99,0.05056934]
[1749440745892,22.71198193,151.0,150.99,0.05056934]
[1749440746197,12.26152783,151.0,150.99,0.05056934]
[1749440746497,9.99480418,151.0,150.99,0.05056934]
[1749440746694,5.64232783,151.0,150.99,0.05056934]
[1749440747095,5.64232783,151.0,150.99,6.67026934]
[1749440749998,9.638e-05,151.02,151.01,6.6188]
[1749440750191,5.6917907,151.02,151.01,6.6188]
[1749440753904,5.6917907,151.02,151.0,6.619]
[1749440754203,5.69169432,151.01,151.0,6.619]
[1749440760110,5.69169432,151.01,150.99,6.67016934]
[1749440760314,5.69969141,151.0,150.99,0.05056934]
[1749440763118,5.69969141,151.0,150.99,6.67026934]
[1749440781527,9.141e-05,151.0,150.99,6.67026934]
[1749440781839,6.09832697,151.08,150.99,6.67056934]
[1749440782029,4.37419521,151.07,150.99,0.05056934]
[1749440782230,6.09832697,151.08,151.0,381.32]
[1749440782435,4.37664936,151.07,151.01,32.66]
[1749440782731,0.04634692,151.06,151.02,0.04490676]
[1749440783328,0.04634692,151.06,151.05,6.6171]
[1749440783529,0.04634692,151.06,151.05,39.2771]
[1749440793446,4.692e-05,151.06,151.05,39.2771]
[1749440821270,4.692e-05,151.06,151.05,45.8971]
[1749440821971,4.692e-05,151.06,151.05,65.7671]
[1749440822365,6.7811,151.18,151.15,6.6127]
[1749440822570,6.7811,151.18,151.08,0.49995308]
[1749440822571,6.7811,151.18,151.16,32.62]
[1749440822773,4.5316,151.18,151.17,32.62]
[1749440822970,10.21158416,151.18,151.17,32.62]
[1749440823169,10.21158416,151.18,151.17,39.2318]
[1749440823571,4.5316,151.18,151.17,39.2318]
[1749440823867,0.05077243,151.19,151.18,6.6114]
[1749440824875,0.05077243,151.19,151.17,32.62]
[1749440825476,0.05077243,151.19,151.17,39.2314]
[1749440825679,0.05077243,151.19,151.17,32.62]
[1749440825879,0.05077243,151.19,151.18,6.6114]
[1749440826081,5.75307694,151.19,151.17,32.62]
[1749440826380,0.05077243,151.19,151.17,32.62]
[1749440826582,0.05077243,151.19,151.18,6.6114]
[1749440826878,5.75245498,151.19,151.18,6.6114]
[1749440827681,0.05077243,151.19,151.18,6.6114]
[1749440828081,5.74771433,151.19,151.18,6.6114]
[1749440828684,0.05077243,151.19,151.18,6.6114]
[1749440836595,0.05077243,151.19,151.17,39.2316]
[1749440836797,0.05077243,151.19,151.17,6.6116]
[1749440836996,5.73713443,151.19,151.17,32.58]
[1749440837294,8.8962,151.18,151.17,32.58]
[1749440837795,14.58141647,151.18,151.17,32.58]
[1749440837995,14.58141647,151.18,151.17,29.0884]
[1749440838692,7.97001647,151.18,151.14,32.58]
[1749440839001,6.6125,151.16,151.14,32.58]
[1749440839584,6.6125,151.16,151.14,39.193]
[1749440839785,6.6119,151.17,151.14,39.193]
[1749440839995,2.2848,151.18,151.14,32.58]
[1749440840394,2.2848,151.18,151.16,6.6122]
[1749440840586,2.2848,151.18,151.14,32.58]
[1749440840791,7.95945881,151.18,151.14,32.58]
[1749440841096,8.8964,151.18,151.15,6.6124]
[1749440841991,8.8964,151.18,151.16,6.6122]
[1749440842191,2.2848,151.18,151.14,32.58]
[1749440842386,0.05077243,151.19,151.14,32.58]
[1749440843099,5.72541369,151.19,151.14,32.58]
[1749440843298,0.05077243,151.19,151.14,32.58]
[1749440843499,0.05077243,151.19,151.18,6.6114]
[1749440843702,5.72541369,151.19,151.18,39.1914]
[1749440843900,0.05077243,151.19,151.18,39.1914]
[1749440844495,5.72541369,151.19,151.18,39.1914]
[1749440844697,0.05077243,151.19,151.18,39.1914]
[1749440845096,5.72541369,151.19,151.18,39.1914]
[1749440845287,0.05077243,151.19,151.18,39.1914]
[1749440845492,5.72541369,151.19,151.18,39.1914]
[1749440845690,0.05077243,151.19,151.18,39.1914]
[1749440845990,5.72541369,151.19,151.18,39.1914]
[1749440846190,0.05077243,151.19,151.18,39.1914]
[1749440846399,5.72541369,151.19,151.18,39.1914]
[1749440846601,0.05077243,151.19,151.18,39.1914]
[1749440846902,5.72541369,151.19,151.18,39.1914]
[1749440847199,0.05077243,151.19,151.18,39.1914]
[1749440847395,10.17381034,151.19,151.18,39.1914]
[1749440847601,5.72541369,151.19,151.18,39.1914]
[1749440847898,4.49930207,151.19,151.18,39.1914]
[1749440848098,10.17412225,151.19,151.18,39.1914]
[1749440848293,4.49948099,151.19,151.18,39.1914]
[1749440848499,5.72541369,151.19,151.18,39.1914]
[1749440848699,4.51121785,151.19,151.18,39.1914]
[1749440848999,4.51117467,151.19,151.18,39.1914]
[1749440849797,4.51139863,151.19,151.18,39.1914]
[1749440849999,4.5113814,151.19,151.18,39.1914]
[1749440850700,0.05077243,151.19,151.18,39.1914]
[1749440851000,4.52590649,151.19,151.18,39.1914]
[1749440851198,4.52568246,151.19,151.18,39.1914]
[1749440851699,0.05077243,151.19,151.18,39.1914]
[1749440851902,4.52568376,151.19,151.18,39.1914]
[1749440852092,4.52568354,151.19,151.18,39.1914]
[1749440852596,4.52574487,151.19,151.18,39.1914]
[1749440853105,4.52581459,151.19,151.18,39.1914]
[1749440853303,4.52590561,151.19,151.18,39.1914]
[1749440853499,0.05077243,151.19,151.18,39.1914]
[1749440853697,4.52718104,151.19,151.18,39.1914]
[1749440854098,0.05077243,151.19,151.18,39.1914]
[1749440854405,4.52735456,151.19,151.18,39.1914]
[1749440854600,0.05077243,151.19,151.18,39.1914]
[1749440855198,4.52744966,151.19,151.18,39.1914]
[1749440855494,4.52729863,151.19,151.18,39.1914]
[1749440856304,4.52289435,151.19,151.18,39.1914]
[1749440856603,10.22563849,151.19,151.18,39.1914]
[1749440857595,5.75351657,151.19,151.18,39.1914]
[1749440857802,10.22618968,151.19,151.18,39.1914]
[1749440857998,10.22606445,151.19,151.18,39.1914]
[1749440859401,10.2263014,151.19,151.18,39.1914]
[1749440859803,5.75351657,151.19,151.18,39.1914]
[1749440860308,10.22600745,151.19,151.18,39.1914]
[1749440860511,5.75351657,151.19,151.18,39.1914]
[1749440860807,10.22630554,151.19,151.18,39.1914]
[1749440861009,5.75351657,151.19,151.18,39.1914]
[1749440861212,10.22638375,151.19,151.18,39.1914]
[1749440861404,10.22638252,151.19,151.18,39.1914]
[1749440861604,5.75351657,151.19,151.18,39.1914]
[1749440861801,10.22638258,151.19,151.18,39.1914]
[1749440862108,5.75351657,151.19,151.18,39.1914]
[1749440862407,10.22645961,151.19,151.18,39.1914]
[1749440863404,5.75351657,151.19,151.18,39.1914]
[1749440865008,10.22711505,151.19,151.18,39.1914]
[1749440865209,5.75351657,151.19,151.18,39.1914]
[1749440865605,10.22699744,151.19,151.18,39.1914]
[1749440865911,10.22665806,151.19,151.18,39.1914]
[1749440866912,5.75351657,151.19,151.18,39.1914]
[1749440867411,10.22836714,151.19,151.18,39.1914]
[1749440867711,5.75351657,151.19,151.18,32.58]
[1749440867902,10.22815325,151.19,151.18,32.58]
[1749440868311,10.22522278,151.19,151.18,32.58]
[1749440868513,10.22522278,151.19,151.18,39.1914]
[1749440868812,5.75351657,151.19,151.18,39.1914]
[1749440869011,10.22533782,151.19,151.18,39.1914]
[1749440869212,5.75351657,151.19,151.18,39.1914]
[1749440869414,10.22525183,151.19,151.18,39.1914]
[1749440869710,10.22534386,151.19,151.18,39.1914]
[1749440870315,5.75351657,151.19,151.18,39.1914]
[1749440870615,10.22506425,151.19,151.18,39.1914]
[1749440870820,5.75351657,151.19,151.18,39.1914]
[1749440871010,10.2252106,151.19,151.18,39.1914]
[1749440871314,5.75351657,151.19,151.18,39.1914]
[1749440871512,10.22531571,151.19,151.18,39.1914]
[1749440872217,10.22474597,151.19,151.18,39.1914]
[1749440872611,5.75351657,151.19,151.18,39.1914]
[1749440872815,10.22469879,151.19,151.18,39.1914]
[1749440873020,10.2247759,151.19,151.18,39.1914]
[1749440874322,5.75351657,151.19,151.18,39.1914]
[1749440875220,10.22316568,151.19,151.18,39.1914]
[1749440875413,10.22310658,151.19,151.18,39.1914]
[1749440875613,10.22318966,151.19,151.18,39.1914]
[1749440875813,5.75351657,151.19,151.18,39.1914]
[1749440879425,10.21683881,151.19,151.18,39.1914]
[1749440879625,5.75351657,151.19,151.18,39.1914]
[1749440883623,5.75351657,151.19,151.18,32.58]
[1749440884230,5.75351657,151.19,151.18,39.1914]
[1749440900043,6.09928797,151.24,151.22,6.6092]
[1749440900246,4.47159474,151.23,151.22,39.1692]
[1749440900538,4.47147436,151.23,151.22,39.1692]
[1749440900940,6.15022045,151.24,151.22,39.1692]
[1749440901141,4.47612291,151.23,151.22,39.1692]
[1749440901847,0.05093248,151.24,151.22,39.1692]
[1749440902439,0.05093248,151.24,151.23,6.6092]
[1749440902648,4.52354429,151.24,151.23,6.6092]
[1749440902839,4.52373001,151.24,151.23,6.6092]
[1749440903036,0.05093248,151.24,151.23,6.6092]
[1749440903338,4.52371416,151.24,151.23,6.6092]
[1749440903939,4.52377815,151.24,151.23,6.6092]
[1749440904247,0.05093248,151.24,151.23,6.6092]
[1749440904445,4.52417649,151.24,151.23,6.6092]
[1749440904946,0.05093248,151.24,151.23,6.6092]
[1749440906247,6.09928797,151.28,151.26,6.6078]
[1749440906446,4.4721046,151.27,151.26,6.6078]
[1749440906647,4.4721046,151.28,151.26,32.56]
[1749440906853,6.09928797,151.29,151.26,39.1677]
[1749440907151,4.48598685,151.28,151.26,39.1677]
[1749440907448,6.14506075,151.29,151.26,39.1677]
[1749440907647,4.48580308,151.28,151.26,39.1677]
[1749440907849,6.14506075,151.29,151.26,39.1677]
[1749440908049,4.48489536,151.28,151.26,39.1677]
[1749440908350,6.14506075,151.29,151.27,6.6073]
[1749440908546,4.48465258,151.28,151.27,6.6073]
[1749440908749,0.04577278,151.29,151.27,6.6073]
[1749440908945,4.48501976,151.28,151.27,6.6073]
[1749440909150,4.48502039,151.28,151.27,6.6073]
[1749440909547,0.04577278,151.29,151.27,6.6073]
[1749440910050,4.52646401,151.29,151.27,6.6073]
[1749440910441,11.13306401,151.29,151.26,39.1677]
[1749440910644,0.04577278,151.29,151.26,32.56]
[1749440910856,6.6074,151.27,151.26,32.56]
[1749440911246,6.14506075,151.29,151.26,32.56]
[1749440911445,0.04577278,151.29,151.26,32.56]
[1749440911646,11.08709816,151.28,151.26,32.56]
[1749440911848,6.6071,151.28,151.26,32.56]
[1749440912152,5.69654913,151.27,151.26,32.56]
[1749440912842,5.69654913,151.27,151.26,39.1679]
[1749440913547,5.69654913,151.27,151.26,41.91275113]
[1749440914049,5.69654913,151.27,151.26,39.1679]
[1749440914452,5.69654913,151.27,151.26,41.91275113]
[1749440916659,5.69654913,151.27,151.26,35.30485113]
[1749440917553,6.607,151.28,151.26,35.30485113]
[1749440918053,6.65257278,151.29,151.26,41.91265113]
[1749440918249,5.69240928,151.28,151.26,41.91265113]
[1749440918454,0.04577278,151.29,151.26,35.30485113]
[1749440918655,5.69199219,151.28,151.26,32.56]
[1749440918864,0.04577278,151.29,151.26,32.56]
[1749440919155,5.69190806,151.28,151.26,32.56]
[1749440919455,0.04577278,151.29,151.27,6.607]
[1749440919661,5.69130894,151.28,151.27,6.607]
[1749440919850,5.69130894,151.28,151.27,9.35185113]
[1749440920854,0.04577278,151.29,151.28,6.607]
[1749440921050,5.73701327,151.29,151.28,9.35185113]
[1749440921755,0.04577278,151.29,151.28,9.35185113]
[1749440924758,5.73536296,151.29,151.28,6.607]
[1749440924955,5.73536296,151.29,151.28,9.35185113]
[1749440925358,0.04577278,151.29,151.28,9.35185113]
[1749440929659,5.7364445,151.29,151.28,2.74485113]
[1749440929855,0.04577278,151.29,151.28,2.74485113]
[1749440930758,0.04577278,151.29,151.28,9.35185113]
[1749440931362,0.04577278,151.29,151.28,6.607]
[1749440931562,0.04577278,151.29,151.28,9.35185113]
[1749440933265,5.73674715,151.29,151.28,2.74485113]
[1749440935463,5.73674715,151.29,151.28,9.35185113]
[1749440937566,5.73674715,151.29,151.28,2.74485113]
[1749440938674,5.73674715,151.29,151.28,9.35185113]
[1749440939871,5.7397333,151.29,151.28,9.35185113]
[1749440943071,10.2394906,151.29,151.28,9.35185113]
[1749440943372,5.7397333,151.29,151.28,9.35185113]
[1749440943671,10.23960987,151.29,151.28,9.35185113]
[1749440944370,5.7397333,151.29,151.28,9.35185113]
[1749440949674,10.24531359,151.29,151.28,9.35185113]
[1749440949875,10.24533935,151.29,151.28,9.35185113]
[1749440950381,10.24550458,151.29,151.28,9.35185113]
[1749440950572,10.24619393,151.29,151.28,9.35185113]
[1749440951274,4.55223341,151.29,151.28,9.35185113]
[1749440951576,4.55171915,151.29,151.28,41.87185113]
[1749440951874,4.55215664,151.29,151.28,41.87185113]
[1749440952073,0.04577278,151.29,151.28,41.87185113]
[1749440952275,10.26897796,151.29,151.28,41.87185113]
[1749440953179,10.26951391,151.29,151.28,41.87185113]
[1749440953376,4.5527441,151.29,151.28,41.87185113]
[1749440953771,4.55274528,151.29,151.28,41.87185113]
[1749440953972,10.27014166,151.29,151.28,41.87185113]
[1749440954173,5.7631691,151.29,151.28,41.87185113]
[1749440954476,10.26999451,151.29,151.28,41.87185113]
[1749440954875,5.7631691,151.29,151.28,41.87185113]
[1749440955075,10.26987647,151.29,151.28,41.87185113]
[1749440955577,5.7631691,151.29,151.28,41.87185113]
[1749440955879,10.27029339,151.29,151.28,41.87185113]
[1749440956975,10.27660988,151.29,151.28,41.87185113]
[1749440957175,10.27661715,151.29,151.28,41.87185113]
[1749440957375,10.27664168,151.29,151.28,41.87185113]
[1749440958976,5.7631691,151.29,151.28,41.87185113]
[1749440959277,10.27711031,151.29,151.28,41.87185113]
[1749440959579,10.27710786,151.29,151.28,41.87185113]
[1749440959779,10.27715592,151.29,151.28,41.87185113]
[1749440960477,10.27807007,151.29,151.28,41.87185113]
[1749440960680,10.27807015,151.29,151.28,41.87185113]
[1749440961282,10.27330475,151.29,151.28,41.87185113]
[1749440962283,5.7631691,151.29,151.28,41.87185113]
[1749440962484,10.27347159,151.29,151.28,41.87185113]
[1749440963084,10.27349529,151.29,151.28,41.87185113]
[1749440964278,10.27493734,151.29,151.28,41.87185113]
[1749440964482,16.41578311,151.29,151.28,41.87185113]
[1749440964685,21.20738291,151.29,151.25,32.55056392]
[1749440964987,6.14492394,151.27,151.25,35.29541505]
[1749440965184,10.22791935,151.26,151.25,35.29541505]
[1749440965885,5.71739632,151.26,151.25,35.29541505]
[1749440966187,10.22743416,151.26,151.25,35.29541505]
[1749440966690,5.71739632,151.26,151.25,35.29541505]
[1749440966888,10.22754207,151.26,151.25,35.29541505]
[1749440967087,16.83544207,151.26,151.25,35.29541505]
[1749440967583,16.83118494,151.26,151.25,35.29541505]
[1749440968290,10.22328494,151.26,151.25,35.29541505]
[1749440969084,10.22413026,151.26,151.25,35.29541505]
[1749440969290,10.2239288,151.26,151.25,35.29541505]
[1749440969486,10.22400606,151.26,151.25,32.55056392]
[1749440969788,10.22400859,151.26,151.25,39.15886392]
[1749440969988,10.22386431,151.26,151.25,39.15886392]
[1749440971085,10.21985978,151.26,151.25,39.15886392]
[1749440971391,10.2014244,151.26,151.25,39.15886392]
[1749440971590,10.2014659,151.26,151.25,39.15886392]
[1749440971792,5.71739632,151.26,151.25,39.15886392]
[1749440971992,5.71739632,151.26,151.25,41.90371505]
[1749440973594,5.71739632,151.26,151.25,35.29541505]
[1749440974896,5.71739632,151.26,151.25,41.90371505]
[1749440976697,0.04577278,151.29,151.28,6.607]
[1749440976899,10.22924296,151.29,151.28,9.35185113]
[1749440977189,10.22916905,151.29,151.28,9.35185113]
[1749440977995,5.75087574,151.29,151.28,9.35185113]
[1749440978197,10.22981964,151.29,151.28,9.35185113]
[1749440978497,5.75087574,151.29,151.28,9.35185113]
[1749440978692,10.22959944,151.29,151.28,9.35185113]
[1749440978895,5.75087574,151.29,151.28,9.35185113]
[1749440979095,10.22953828,151.29,151.28,9.35185113]
[1749440979296,5.75087574,151.29,151.28,9.35185113]
[1749440979494,10.22987303,151.29,151.28,9.35185113]
[1749440979796,10.22987181,151.29,151.28,9.35185113]
[1749440979997,10.22987298,151.29,151.28,9.35185113]
[1749440980299,10.22983103,151.29,151.28,6.607]
[1749440980492,10.22983103,151.29,151.28,9.35185113]
[1749440981596,10.22983103,151.29,151.28,2.74485113]
[1749440981795,10.22330389,151.29,151.28,2.74485113]
[1749440981990,5.75087574,151.29,151.28,2.74485113]
[1749440982195,10.22325659,151.29,151.28,2.74485113]
[1749440983200,10.2424907,151.29,151.28,2.74485113]
[1749440983398,10.24249961,151.29,151.28,2.74485113]
[1749440983699,10.24259272,151.29,151.28,2.74485113]
[1749440984000,10.24269851,151.29,151.28,2.74485113]
[1749440985100,10.24294564,151.29,151.28,2.74485113]
[1749440985289,10.23837184,151.29,151.28,2.74485113]
[1749440985900,5.75087574,151.29,151.28,2.74485113]
[1749440986100,10.23812401,151.29,151.28,2.74485113]
[1749440987101,10.23930226,151.29,151.28,2.74485113]
[1749440987290,5.75087574,151.29,151.28,2.74485113]
[1749440987799,10.23930344,151.29,151.28,2.74485113]
[1749440988001,10.23973544,151.29,151.28,2.74485113]
[1749440988195,10.23973544,151.29,151.27,6.6072]
[1749440988501,19.08329957,151.28,151.25,35.29541505]
[1749440988800,5.70510296,151.27,151.26,2.74485113]
[1749440989396,10.19316469,151.27,151.26,2.74485113]
[1749440989999,10.19316469,151.27,151.26,9.35275113]
[1749440990201,10.19298875,151.27,151.26,9.35275113]
[1749440990500,10.18832446,151.27,151.26,9.35275113]
[1749440990798,10.1884868,151.27,151.26,9.35275113]
[1749440990997,10.18828178,151.27,151.26,9.35275113]
[1749440991192,10.1884868,151.27,151.26,9.35275113]
[1749440991496,5.70510296,151.27,151.26,9.35275113]
[1749440991696,10.18822508,151.27,151.26,9.35275113]
[1749440992193,10.18713869,151.27,151.26,9.35275113]
[1749440992499,10.18722504,151.27,151.26,9.35275113]
[1749440992694,10.18707132,151.27,151.26,9.35275113]
[1749440992900,10.18717893,151.27,151.26,9.35275113]
[1749440993201,10.18715792,151.27,151.26,9.35275113]
[1749440993700,10.18715792,151.27,151.26,6.6079]
[1749440993901,10.18715792,151.27,151.26,9.35275113]
[1749440994200,10.18697665,151.27,151.26,9.35275113]
[1749440994602,10.18707913,151.27,151.26,9.35275113]
[1749440995005,5.70510296,151.27,151.26,9.35275113]
[1749441000495,0.04577278,151.29,151.26,9.35275113]
[1749441000496,0.04577278,151.29,151.28,6.607]
[1749441000700,6.14492394,151.32,151.28,2.74485113]
[1749441000901,6.14492394,151.33,151.31,2.74485113]
[1749441001207,6.14492394,151.33,151.32,2.74485113]
[1749441001708,4.48058468,151.33,151.32,2.74485113]
[1749441002217,11.08538468,151.33,151.32,2.74485113]
[1749441003010,11.08127008,151.33,151.32,2.74485113]
[1749441003203,6.6048,151.33,151.32,2.74485113]
[1749441003407,11.08127008,151.33,151.32,2.74485113]
[1749441004705,4.47647008,151.33,151.32,9.35005113]
[1749441005018,0.04399983,151.34,151.32,2.74485113]
[1749441005312,11.08167202,151.33,151.31,2.78771787]
[1749441005512,12.74972394,151.33,151.31,2.78771787]
[1749441005806,11.08118794,151.32,151.31,0.04286674]
[1749441006410,11.08088858,151.32,151.31,0.04286674]
[1749441006611,13.82573971,151.32,151.31,0.04286674]
[1749441006812,15.49497507,151.32,151.31,0.04286674]
[1749441007212,19.98847599,151.32,151.31,0.04286674]
[1749441007602,13.84355205,151.32,151.31,0.04286674]
[1749441007915,19.97787239,151.32,151.31,0.04286674]
[1749441008509,19.98006232,151.32,151.31,0.04286674]
[1749441008714,15.48437147,151.32,151.31,0.04286674]
[1749441009415,13.84566371,151.32,151.31,0.04286674]
[1749441009912,19.98243131,151.32,151.31,0.04286674]
[1749441010113,9.35005113,151.32,151.31,0.04286674]
[1749441010311,13.8469654,151.32,151.31,0.04286674]
[1749441010614,13.8386332,151.32,151.31,0.04286674]
[1749441010814,9.35005113,151.32,151.31,0.04286674]
[1749441011114,7.23428754,151.32,151.26,35.24485113]
[1749441011312,8.88364259,151.3,151.27,2.74485113]
[1749441011516,4.48943641,151.29,151.27,9.35225113]
[1749441011715,2.74485113,151.3,151.27,9.35225113]
[1749441012214,4.49411963,151.29,151.27,9.39474003]
[1749441012516,15.53981501,151.3,151.27,9.39474003]
[1749441012517,5.68601213,151.28,151.27,9.39474003]
[1749441016522,10.17212861,151.28,151.27,9.39474003]
[1749441016711,10.1726636,151.28,151.27,9.39474003]
[1749441017021,10.17178968,151.28,151.27,9.39474003]
[1749441017321,10.17160294,151.28,151.27,9.39474003]
[1749441017520,5.68601213,151.28,151.27,9.39474003]
[1749441017723,10.17171621,151.28,151.27,9.39474003]
[1749441019024,10.17335828,151.28,151.27,9.39474003]
[1749441019819,5.68601213,151.28,151.27,9.39474003]
[1749441020122,10.1733163,151.28,151.27,9.39474003]
[1749441020525,10.17321133,151.28,151.27,9.39474003]
[1749441020726,5.68601213,151.28,151.27,9.39474003]
[1749441020923,10.17310705,151.28,151.27,9.39474003]
[1749441021124,5.68601213,151.28,151.27,9.39474003]
[1749441021428,10.17256945,151.28,151.27,9.39474003]
[1749441022726,10.17256462,151.28,151.27,9.39474003]
[1749441022921,5.68601213,151.28,151.27,9.39474003]
[1749441023120,10.17256337,151.28,151.27,9.39474003]
[1749441023822,5.68601213,151.28,151.27,2.78734003]
[1749441024021,10.17252314,151.28,151.27,2.78734003]
[1749441024223,5.68601213,151.28,151.27,2.78734003]
[1749441024424,10.17269394,151.28,151.27,9.39474003]
[1749441024626,10.17312791,151.28,151.27,9.39474003]
[1749441025523,10.17358672,151.28,151.27,9.39474003]
[1749441025827,5.68601213,151.28,151.27,9.39474003]
[1749441026028,10.17310288,151.28,151.27,9.39474003]
[1749441027630,10.17327026,151.28,151.27,9.39474003]
[1749441028131,10.17327026,151.28,151.27,41.87474003]
[1749441029430,5.68601213,151.28,151.27,41.87474003]
[1749441029825,10.17418109,151.28,151.27,41.87474003]
[1749441030730,5.68601213,151.28,151.27,41.87474003]
[1749441035234,5.68601213,151.28,151.27,32.5224889]
[1749441035533,25.666736,151.28,151.27,32.5224889]
[1749441035734,25.666736,151.28,151.27,0.0424889]
[1749441036432,21.17665472,151.28,151.27,0.0424889]
[1749441036631,25.66988916,151.28,151.27,0.0424889]
[1749441037038,25.6698624,151.28,151.27,0.0424889]
[1749441037538,25.66866565,151.28,151.27,0.0424889]
[1749441038337,25.66820964,151.28,151.27,0.0424889]
[1749441038539,25.66908825,151.28,151.27,0.0424889]
[1749441038738,25.66904182,151.28,151.27,0.0424889]
[1749441039539,25.6690674,151.28,151.27,0.0424889]
[1749441040135,21.17665472,151.28,151.27,0.0424889]
[1749441040334,25.66906742,151.28,151.27,0.0424889]
[1749441040541,25.66872534,151.28,151.27,0.0424889]
[1749441040740,21.17665472,151.28,151.27,0.0424889]
[1749441040939,25.66862302,151.28,151.27,0.0424889]
[1749441041742,19.52983156,151.28,151.27,0.0424889]
[1749441042137,19.51090934,151.28,151.27,0.0424889]
[1749441042341,15.03786326,151.28,151.27,0.0424889]
[1749441042536,19.51121774,151.28,151.27,0.0424889]
[1749441043138,5.68601213,151.28,151.27,2.78734003]
[1749441044645,5.68601213,151.28,151.27,9.39474003]
[1749441050447,0.04987242,151.3,151.29,6.6065]
[1749441050652,5.72956567,151.3,151.29,9.35135113]
[1749441051252,10.22324528,151.3,151.29,9.35135113]